bitfinex-derivatives/quotes_BTCF0:USTF0_20251009
["timestamp","ask_amount","ask_price","bid_price","bid_amount"]
[1760006784074,1.73884781,122310.0,122300.0,0.06636101]
[1760006784276,1.73884781,122310.0,122300.0,0.74152]
[1760006785074,0.2516949,122280.0,122270.0,2.11446615]
[1760006785273,0.2516949,122280.0,122270.0,2.78316]
[1760006785274,0.88684781,122280.0,122270.0,2.78316]
[1760006786979,0.2517016,122270.0,122260.0,0.15579631]
[1760006787276,0.88685451,122270.0,122260.0,3.01182586]
[1760006787472,0.88685451,122270.0,122260.0,2.93899971]
[1760006787672,0.52605451,122270.0,122260.0,2.93899971]
[1760006787876,0.88685451,122270.0,122260.0,2.93899971]
[1760006788776,0.6325016,122270.0,122260.0,2.93899971]
[1760006789078,0.88685451,122270.0,122260.0,2.93903971]
[1760006789372,0.52605451,122270.0,122260.0,2.93903971]
[1760006789873,0.52605451,122270.0,122260.0,2.19747971]
[1760006790078,0.88685451,122270.0,122260.0,2.93903971]
[1760006792275,0.6325016,122270.0,122260.0,2.93903971]
[1760006792471,0.52605451,122270.0,122260.0,2.93903971]
[1760006794783,0.52605451,122270.0,122260.0,2.19747971]
[1760006794984,0.52605451,122270.0,122260.0,2.85731141]
[1760006795884,0.52605451,122270.0,122260.0,2.85751141]
[1760006796080,0.6533416,122270.0,122260.0,2.85751141]
[1760006796385,0.6533416,122270.0,122260.0,3.01211884]
[1760006797387,1.0141416,122270.0,122260.0,3.01211884]
[1760006799285,0.6533416,122270.0,122260.0,3.01211884]
[1760006799489,1.0141416,122270.0,122260.0,3.01211884]
[1760006801989,1.0141416,122270.0,122260.0,2.93927971]
[1760006803493,1.0141416,122270.0,122260.0,0.89739971]
[1760006803987,1.0141416,122270.0,122260.0,0.15579971]
[1760006804390,1.0141416,122270.0,122260.0,0.97023884]
[1760006805196,1.2049616,122270.0,122260.0,0.81563141]
[1760006805493,1.6049616,122270.0,122260.0,0.81563141]
[1760006805690,1.6049616,122270.0,122260.0,0.88847054]
[1760006806193,1.6049616,122270.0,122260.0,0.81563141]
[1760006806691,1.4141416,122270.0,122260.0,0.81563141]
[1760006807194,1.4141416,122270.0,122260.0,0.89739971]
[1760006807390,1.4141416,122270.0,122260.0,0.97023884]
[1760006809195,1.4141416,122270.0,122260.0,0.88847054]
[1760006809695,1.8549616,122270.0,122260.0,0.14687054]
[1760006809899,1.8549616,122270.0,122260.0,0.81567141]
[1760006810487,1.8549616,122270.0,122260.0,0.81563141]
[1760006810890,1.8549616,122270.0,122260.0,0.81567141]
[1760006812297,1.6641416,122270.0,122260.0,0.07403141]
[1760006812496,1.6641416,122270.0,122260.0,0.81567141]
[1760006813197,1.8549616,122270.0,122260.0,0.07403141]
[1760006813392,1.8549616,122270.0,122260.0,0.81567141]
[1760006814696,2.2157616,122270.0,122260.0,0.81567141]
[1760006819304,2.2157616,122270.0,122260.0,0.88851054]
[1760006819700,2.0249416,122270.0,122260.0,0.22863884]
[1760006819908,2.0249416,122270.0,122260.0,0.97027884]
[1760006821809,2.0249416,122270.0,122260.0,0.22863884]
[1760006822105,2.0249416,122270.0,122260.0,0.97027884]
[1760006824513,2.0249416,122270.0,122260.0,0.88851054]
[1760006825013,2.0249416,122270.0,122260.0,0.97027884]
[1760006825914,2.0249416,122270.0,122260.0,0.89743971]
[1760006828316,2.0249416,122270.0,122260.0,0.07403141]
[1760006828614,2.0249416,122270.0,122260.0,0.81567141]
[1760006829316,2.0249416,122270.0,122260.0,0.07403141]
[1760006829712,0.17129,122240.0,122230.0,0.00072195]
[1760006829914,1.1963317,122240.0,122230.0,2.05224726]
[1760006830214,1.1963317,122240.0,122230.0,0.75160726]
[1760006830714,1.19643254,122240.0,122230.0,0.75160726]
[1760006832014,1.19643254,122240.0,122230.0,0.75164726]
[1760006832615,1.19643254,122240.0,122230.0,0.83343566]
[1760006832823,1.00561254,122240.0,122230.0,0.09179566]
[1760006833016,0.81897084,122240.0,122230.0,0.49179566]
[1760006833314,0.90075254,122240.0,122230.0,1.23343566]
[1760006833513,0.90075254,122240.0,122230.0,1.29959252]
[1760006833915,0.45817084,122240.0,122230.0,1.29959252]
[1760006835211,0.26735084,122240.0,122230.0,1.49041252]
[1760006835521,0.01010084,122240.0,122230.0,1.73323165]
[1760006835717,0.01010084,122240.0,122230.0,1.85121252]
[1760006836019,0.01010084,122240.0,122230.0,1.95351918]
[1760006836518,0.01010084,122240.0,122230.0,1.85125252]
[1760006837420,0.00010084,122240.0,122230.0,1.85125252]
[1760006838010,0.00010084,122240.0,122230.0,1.10957252]
[1760006838224,0.42445,122270.0,122260.0,0.0817683]
[1760006838520,0.83162,122270.0,122260.0,2.93875941]
[1760006838719,0.83162,122270.0,122260.0,3.12957941]
[1760006838920,0.83162,122270.0,122260.0,3.33875941]
[1760006839316,0.83162,122270.0,122260.0,3.2658483]
[1760006839516,0.83162,122270.0,122260.0,3.33874978]
[1760006839716,0.84162,122270.0,122260.0,2.59706978]
[1760006839918,0.90805,122270.0,122260.0,0.55466978]
[1760006840112,0.90805,122270.0,122260.0,3.33866978]
[1760006840318,1.14805,122270.0,122260.0,3.33866978]
[1760006840824,0.52725,122270.0,122260.0,3.33866978]
[1760006841515,0.52725,122270.0,122260.0,3.2657683]
[1760006841721,0.79725,122270.0,122260.0,3.2657683]
[1760006841921,0.52725,122270.0,122260.0,3.2657683]
[1760006842422,0.52725,122270.0,122260.0,3.33865716]
[1760006843424,0.46082,122270.0,122260.0,3.89023716]
[1760006843827,0.55162,122290.0,122280.0,0.0817549]
[1760006844123,0.61162,122290.0,122280.0,1.0141749]
[1760006844323,0.85162,122290.0,122280.0,1.0141749]
[1760006844825,0.6608,122290.0,122280.0,1.0141749]
[1760006845025,0.3,122290.0,122280.0,1.7749749]
[1760006845324,0.3,122290.0,122280.0,1.87705046]
[1760006845526,0.3,122290.0,122280.0,1.87701046]
[1760006845719,0.42469,122310.0,122300.0,0.0817415]
[1760006846018,0.91551,122310.0,122300.0,0.89620603]
[1760006846417,0.91551,122310.0,122300.0,1.29620603]
[1760006846615,0.91551,122310.0,122300.0,3.33844603]
[1760006846922,0.3,122310.0,122300.0,3.22119094]
[1760006847128,0.49082,122310.0,122300.0,0.98821094]
[1760006847423,0.49082,122310.0,122300.0,3.96299094]
[1760006847726,0.49082,122310.0,122300.0,3.96295094]
[1760006848126,0.49082,122310.0,122300.0,0.98821094]
[1760006848322,0.49082,122310.0,122300.0,3.96283094]
[1760006848830,0.49082,122310.0,122300.0,1.17903094]
[1760006849031,0.49082,122310.0,122300.0,3.96275094]
[1760006849331,0.49082,122310.0,122300.0,3.88998603]
[1760006849725,0.49736,122310.0,122300.0,3.88998603]
[1760006851234,0.49736,122310.0,122300.0,1.10626603]
[1760006851533,0.49736,122310.0,122300.0,3.33804603]
[1760006851730,0.49736,122310.0,122300.0,3.52874603]
[1760006852033,0.49736,122310.0,122300.0,3.88954603]
[1760006852230,0.49736,122310.0,122300.0,3.69872603]
[1760006852630,0.49736,122310.0,122300.0,3.88954603]
[1760006852832,0.49736,122310.0,122300.0,3.69872603]
[1760006853034,0.49736,122310.0,122300.0,3.88954603]
[1760006854036,0.49736,122310.0,122300.0,1.10626603]
[1760006854225,0.49736,122310.0,122300.0,3.88946603]
[1760006854534,0.56125,122310.0,122300.0,2.19628603]
[1760006854735,0.56125,122310.0,122300.0,2.93768603]
[1760006855234,0.37043,122310.0,122300.0,2.93768603]
[1760006855436,0.56125,122310.0,122300.0,2.93768603]
[1760006856537,0.56125,122310.0,122300.0,2.19628603]
[1760006856737,0.56125,122310.0,122300.0,2.93764603]
[1760006857333,0.56125,122310.0,122300.0,0.15464603]
[1760006857533,0.56125,122310.0,122300.0,2.93756603]
[1760006858041,0.81432199,122310.0,122300.0,0.15464603]
[1760006858232,0.81432199,122310.0,122300.0,2.86928603]
[1760006858433,0.81432199,122310.0,122300.0,0.15464603]
[1760006858733,0.81432199,122310.0,122300.0,2.93748603]
[1760006860734,1.17512199,122310.0,122300.0,2.11438453]
[1760006860930,1.17512199,122310.0,122300.0,2.85574453]
[1760006861135,1.17512199,122310.0,122300.0,0.07290453]
[1760006861439,1.17512199,122310.0,122300.0,0.7677816]
[1760006861641,1.57512199,122310.0,122300.0,0.0817416]
[1760006861841,1.57512199,122310.0,122300.0,0.8230616]
[1760006862141,1.57512199,122310.0,122300.0,0.0817416]
[1760006862342,0.253577,122300.0,122290.0,2.123182]
[1760006862642,1.05859409,122300.0,122290.0,2.864502]
[1760006862941,1.05859409,122300.0,122290.0,2.87370879]
[1760006864436,0.19,122300.0,122290.0,2.13238879]
[1760006864744,0.19,122300.0,122290.0,3.23450879]
[1760006864943,0.19,122300.0,122290.0,3.48872588]
[1760006865148,0.19,122300.0,122290.0,3.23450879]
[1760006866046,0.19,122300.0,122290.0,3.29991395]
[1760006866747,0.19,122300.0,122290.0,3.69991395]
[1760006866939,0.61288709,122300.0,122290.0,0.51716015]
[1760006867139,0.69462869,122300.0,122290.0,2.55860015]
[1760006867345,0.61288709,122300.0,122290.0,2.93940015]
[1760006867543,0.50872709,122300.0,122290.0,2.93940015]
[1760006867743,0.59046869,122300.0,122290.0,2.19780015]
[1760006867944,0.50872709,122300.0,122290.0,2.93936015]
[1760006868146,0.50872709,122300.0,122290.0,3.30016015]
[1760006868349,0.50872709,122300.0,122290.0,0.51716015]
[1760006868646,0.50872709,122300.0,122290.0,3.30012015]
[1760006868940,0.50872709,122300.0,122290.0,2.93932015]
[1760006871343,0.61288709,122300.0,122290.0,2.93928015]
[1760006871543,0.50872709,122300.0,122290.0,2.93928015]
[1760006872043,0.61288709,122300.0,122290.0,0.15636015]
[1760006872345,1.05542869,122300.0,122290.0,2.93928015]
[1760006873947,0.61288709,122300.0,122290.0,2.93928015]
[1760006874243,0.50872709,122300.0,122290.0,2.19780015]
[1760006874444,0.50872709,122300.0,122290.0,2.93932015]
[1760006875045,0.50872709,122300.0,122290.0,3.30012015]
[1760006876443,0.19,122300.0,122290.0,3.55433724]
[1760006876647,0.19,122300.0,122290.0,3.30012015]
[1760006876840,0.19,122300.0,122290.0,3.30016015]
[1760006876841,0.50381709,122300.0,122290.0,3.30016015]
[1760006877945,0.2496,122300.0,122290.0,0.51716015]
[1760006878140,0.50381709,122300.0,122290.0,2.93936015]
[1760006878344,0.50381709,122300.0,122290.0,3.30016015]
[1760006879049,0.2496,122300.0,122290.0,3.30016015]
[1760006879250,0.2496,122300.0,122290.0,3.30012015]
[1760006879548,0.50381709,122300.0,122290.0,3.30012015]
[1760006879748,0.50381709,122300.0,122290.0,3.21281724]
[1760006879749,0.19,122300.0,122290.0,3.21281724]
[1760006879949,0.06389,122310.0,122300.0,0.0817416]
[1760006880148,0.32389,122310.0,122300.0,0.0817416]
[1760006880651,0.26,122310.0,122300.0,0.8235816]
[1760006881039,0.26,122310.0,122300.0,0.4425416]
[1760006881243,0.26,122310.0,122300.0,1.1843816]
[1760006881444,0.26,122310.0,122300.0,1.43859869]
[1760006881743,0.26,122310.0,122300.0,0.4425416]
[1760006881945,0.26,122310.0,122300.0,1.1843816]
[1760006882150,0.26,122310.0,122300.0,0.4425416]
[1760006882350,0.26,122310.0,122300.0,1.1843416]
[1760006883447,0.26,122310.0,122300.0,0.4425416]
[1760006883653,0.26,122310.0,122300.0,1.1842616]
[1760006884252,0.26654,122310.0,122300.0,1.1842616]
[1760006885153,0.26654,122310.0,122300.0,0.4425416]
[1760006885556,0.32614,122310.0,122300.0,0.0817416]
[1760006885851,0.32614,122310.0,122300.0,3.1326416]
[1760006886052,0.26654,122310.0,122300.0,3.00605869]
[1760006886257,0.26654,122310.0,122300.0,3.74765869]
[1760006888649,0.2278791,122310.0,122300.0,3.74765869]
[1760006888850,0.0097614,122310.0,122300.0,3.13815869]
[1760006889055,0.31381709,122340.0,122330.0,0.0817215]
[1760006889251,0.85381709,122340.0,122330.0,0.88768316]
[1760006889451,0.27,122340.0,122330.0,0.76122025]
[1760006889651,0.27,122340.0,122330.0,1.57576622]
[1760006889852,0.27,122340.0,122330.0,3.61716622]
[1760006890357,0.27,122340.0,122330.0,3.36294913]
[1760006890654,0.27,122340.0,122330.0,3.61716622]
[1760006890955,0.27,122340.0,122330.0,2.87548622]
[1760006891156,0.27,122340.0,122330.0,3.36294913]
[1760006891553,0.27,122340.0,122330.0,3.36290913]
[1760006892156,0.27,122340.0,122330.0,3.28996316]
[1760006892953,0.27,122340.0,122330.0,0.50700316]
[1760006893153,0.27,122340.0,122330.0,3.28976316]
[1760006893757,0.27,122340.0,122330.0,3.54398025]
[1760006893961,0.27,122340.0,122330.0,2.80242025]
[1760006894154,0.27,122340.0,122330.0,3.54406025]
[1760006895655,0.27,122340.0,122330.0,2.80234025]
[1760006895856,0.27,122340.0,122330.0,3.54386025]
[1760006896258,0.17169206,122360.0,122340.0,0.0817132]
[1760006896462,0.0596,122390.0,122360.0,0.0817015]
[1760006896655,0.73308709,122390.0,122370.0,1.104]
[1760006896855,0.75308709,122390.0,122370.0,1.104]
[1760006897060,0.0596,122380.0,122370.0,1.104]
[1760006897361,0.0596,122380.0,122370.0,1.1856948]
[1760006897758,0.31381709,122380.0,122370.0,1.1856948]
[1760006898153,0.31381709,122380.0,122370.0,0.4424948]
[1760006898360,0.31381709,122380.0,122370.0,2.4834548]
[1760006898560,0.31381709,122380.0,122370.0,3.2265348]
[1760006898862,0.31381709,122380.0,122370.0,2.4834148]
[1760006899062,0.31381709,122380.0,122370.0,3.2264548]
[1760006899361,0.0596,122380.0,122370.0,3.2264548]
[1760006899561,0.31381709,122380.0,122370.0,3.2264548]
[1760006899762,0.31481709,122380.0,122370.0,0.4424948]
[1760006899953,0.31481709,122380.0,122370.0,2.49225242]
[1760006900158,0.31481709,122380.0,122370.0,3.30042374]
[1760006900658,0.0606,122380.0,122370.0,3.30042374]
[1760006902061,0.001,122380.0,122370.0,0.77088083]
[1760006902268,0.001,122380.0,122370.0,3.55436083]
[1760006902567,0.001,122380.0,122370.0,3.95436083]
[1760006902867,0.001,122380.0,122370.0,3.70014374]
[1760006903071,0.001,122380.0,122370.0,3.95468083]
[1760006903461,0.001,122380.0,122370.0,3.70046374]
[1760006903760,0.001,122380.0,122370.0,3.95468083]
[1760006904060,0.001,122380.0,122370.0,4.31548083]
[1760006904566,0.001,122380.0,122370.0,4.31540083]
[1760006904764,0.001,122380.0,122370.0,1.53168083]
[1760006904965,0.001,122380.0,122370.0,4.31528083]
[1760006907064,0.001,122380.0,122370.0,4.31512083]
[1760006907265,0.001,122380.0,122370.0,4.31500083]
[1760006907466,0.001,122380.0,122370.0,4.06078374]
[1760006907967,0.00782793,122400.0,122390.0,0.0816814]
[1760006908169,0.27782793,122400.0,122390.0,1.1853614]
[1760006908766,0.27782793,122400.0,122390.0,2.4828814]
[1760006908970,0.27782793,122400.0,122390.0,3.2258014]
[1760006909270,0.27982793,122400.0,122390.0,3.2258014]
[1760006910373,0.27982793,122400.0,122390.0,0.4424814]
[1760006910575,0.27982793,122400.0,122390.0,3.2256414]
[1760006911074,0.27982793,122400.0,122390.0,0.4424814]
[1760006911270,0.27982793,122400.0,122390.0,3.2254014]
[1760006912474,0.27982793,122400.0,122390.0,2.4826814]
[1760006912670,0.67761982,122400.0,122390.0,3.1436]
[1760006912877,1.43842691,122400.0,122390.0,2.0402]
[1760006913075,1.43842691,122400.0,122390.0,2.78288]
[1760006913478,1.18420982,122400.0,122390.0,2.78288]
[1760006913676,1.54500982,122400.0,122390.0,2.78288]
[1760006913976,1.54500982,122400.0,122390.0,2.0402]
[1760006914171,1.54500982,122400.0,122390.0,2.78288]
[1760006914376,1.54500982,122400.0,122390.0,2.0402]
[1760006914575,1.54500982,122400.0,122390.0,2.78284]
[1760006915680,0.1435814,122390.0,122380.0,0.4424836]
[1760006915979,0.40779849,122390.0,122380.0,3.2251636]
[1760006916279,0.40779849,122390.0,122380.0,2.4825636]
[1760006916578,0.40779849,122390.0,122380.0,3.2250881]
[1760006916982,0.51638849,122390.0,122380.0,2.4825681]
[1760006917176,0.51638849,122390.0,122380.0,2.8642481]
[1760006917678,0.1435881,122380.0,122370.0,0.51666094]
[1760006917978,0.50439519,122380.0,122370.0,2.55674374]
[1760006918173,0.44061025,122380.0,122370.0,3.48961589]
[1760006918475,0.33402025,122380.0,122370.0,3.48961589]
[1760006918678,0.33402025,122380.0,122370.0,3.48969589]
[1760006918877,0.33502025,122380.0,122370.0,2.74717589]
[1760006919179,0.33502025,122380.0,122370.0,3.48965589]
[1760006919378,0.33502025,122380.0,122370.0,3.29922374]
[1760006919578,0.1445881,122380.0,122370.0,3.29922374]
[1760006919780,0.33502025,122380.0,122370.0,3.29922374]
[1760006919979,0.33502025,122380.0,122370.0,0.51666374]
[1760006920175,0.5254524,122380.0,122370.0,2.47500894]
[1760006920481,0.5254524,122380.0,122370.0,0.43496894]
[1760006920776,0.6320424,122380.0,122370.0,2.47500894]
[1760006920979,1.0420424,122380.0,122370.0,2.11420894]
[1760006921281,1.0420424,122380.0,122370.0,2.04004]
[1760006921479,1.0420424,122380.0,122370.0,2.78248]
[1760006921977,0.1435948,122370.0,122360.0,0.4425014]
[1760006922372,0.33402695,122370.0,122360.0,3.2249414]
[1760006922570,0.33402695,122370.0,122360.0,3.23398446]
[1760006922873,0.33402695,122370.0,122360.0,0.45154446]
[1760006923074,0.33402695,122370.0,122360.0,3.23394446]
[1760006923278,0.33502695,122370.0,122360.0,3.23394446]
[1760006926077,0.33502695,122370.0,122360.0,3.23386446]
[1760006928389,0.6297091,122370.0,122360.0,0.36984306]
[1760006928577,1.0297091,122370.0,122360.0,2.40992306]
[1760006928880,1.0297091,122370.0,122360.0,3.15196306]
[1760006929078,1.0297091,122370.0,122360.0,0.00904306]
[1760006929277,1.0297091,122370.0,122360.0,2.7822]
[1760006929472,1.0297091,122370.0,122360.0,2.79116107]
[1760006929473,1.0397091,122370.0,122360.0,2.79116107]
[1760006930481,1.0397091,122370.0,122360.0,2.79128107]
[1760006932279,0.6588448,122370.0,122360.0,2.79128107]
[1760006932482,0.6588448,122370.0,122360.0,2.87294257]
[1760006932683,1.0397091,122370.0,122360.0,2.79124107]
[1760006933184,1.0397091,122370.0,122360.0,2.87294257]
[1760006934080,1.0397091,122370.0,122360.0,2.04912107]
[1760006934284,1.0397091,122370.0,122360.0,2.79120107]
[1760006934474,1.4005091,122370.0,122350.0,0.3608]
[1760006934681,0.71314795,122360.0,122350.0,2.40104]
[1760006934880,0.71314795,122360.0,122350.0,3.14312]
[1760006935077,0.2460581,122350.0,122340.0,2.40104]
[1760006935281,0.6269224,122350.0,122340.0,3.14312]
[1760006935882,0.6269224,122350.0,122340.0,3.14324]
[1760006936283,0.6269224,122350.0,122340.0,0.3608]
[1760006936581,0.43649025,122350.0,122340.0,2.4827948]
[1760006936778,0.43649025,122350.0,122340.0,3.23388296]
[1760006937378,0.6269224,122350.0,122340.0,2.41008816]
[1760006937582,0.6269224,122350.0,122340.0,3.15220816]
[1760006937882,0.6269224,122350.0,122340.0,3.15320816]
[1760006938086,0.6269224,122350.0,122340.0,3.15316816]
[1760006938481,0.6269224,122350.0,122340.0,0.37076816]
[1760006938684,0.6269224,122350.0,122340.0,3.15316816]
[1760006940782,0.6269624,122350.0,122340.0,0.37076816]
[1760006940989,1.0269624,122350.0,122340.0,2.05040816]
[1760006941188,1.0269624,122350.0,122340.0,2.79236816]
[1760006942589,1.0269624,122350.0,122340.0,2.05040816]
[1760006942884,1.0269624,122350.0,122340.0,2.79240816]
[1760006943987,1.0269624,122350.0,122340.0,2.79236816]
[1760006944486,1.0269624,122350.0,122340.0,0.00996816]
[1760006944688,1.58819455,122350.0,122340.0,0.74296]
[1760006945085,1.3977624,122350.0,122340.0,0.74296]
[1760006945783,1.58819455,122350.0,122340.0,0.74296]
[1760006945983,0.2460648,122340.0,122330.0,0.06448166]
[1760006946190,1.17816125,122340.0,122330.0,0.74192]
[1760006947379,1.57816125,122340.0,122330.0,0.74192]
[1760006947591,0.2460715,122330.0,122320.0,2.4014]
[1760006947788,0.6269358,122330.0,122320.0,0.3608]
[1760006947989,0.6269358,122330.0,122320.0,2.40144]
[1760006948290,0.6269358,122330.0,122320.0,3.15197371]
[1760006948882,0.6269358,122330.0,122320.0,0.37137371]
[1760006949085,0.6269358,122330.0,122320.0,2.05125371]
[1760006949486,1.67816795,122330.0,122320.0,2.84964264]
[1760006950384,1.67816795,122330.0,122320.0,0.06704264]
[1760006950583,1.67816795,122330.0,122320.0,0.58376264]
[1760006951490,1.67816795,122330.0,122320.0,0.06704264]
[1760006951686,0.0817349,122310.0,122300.0,0.3608]
[1760006951884,0.6269492,122310.0,122300.0,1.10284]
[1760006952090,0.6269492,122310.0,122300.0,1.10288]
[1760006952091,0.6369492,122310.0,122300.0,1.10288]
[1760006952589,0.6369492,122310.0,122300.0,0.3608]
[1760006952789,0.6369492,122310.0,122300.0,1.10288]
[1760006952994,0.6369492,122310.0,122300.0,1.11151824]
[1760006953295,0.6369492,122310.0,122300.0,1.17736269]
[1760006953590,0.6369492,122310.0,122300.0,0.43528269]
[1760006953800,0.6369492,122310.0,122300.0,1.17732269]
[1760006957400,0.6379492,122310.0,122300.0,1.17732269]
[1760006957694,0.6379492,122310.0,122300.0,0.81652269]
[1760006957996,0.9987492,122310.0,122300.0,0.81652269]
[1760006958394,0.9987492,122310.0,122300.0,0.81636269]
[1760006958800,0.9987492,122310.0,122300.0,0.07448269]
[1760006959096,0.6379492,122310.0,122300.0,0.74188]
[1760006959697,0.6379492,122310.0,122300.0,0.75071237]
[1760006960998,0.9987492,122310.0,122300.0,0.00883237]
[1760006961201,0.9987492,122310.0,122300.0,0.74184]
[1760006961898,0.9987492,122310.0,122300.0,0.80886141]
[1760006962805,0.6379492,122310.0,122300.0,0.14876301]
[1760006963105,0.6379492,122310.0,122300.0,0.80874141]
[1760006963300,0.9987492,122310.0,122300.0,0.80874141]
[1760006963494,0.6379492,122310.0,122300.0,0.81731079]
[1760006964000,0.6379492,122310.0,122300.0,0.07559079]
[1760006964200,0.6379492,122310.0,122300.0,0.74168]
[1760006964394,0.6379492,122310.0,122300.0,0.8084528]
[1760006964898,0.9987492,122310.0,122300.0,0.8084528]
[1760006965099,0.2470716,122300.0,122290.0,2.40212]
[1760006965302,0.6279359,122300.0,122290.0,3.14376]
[1760006965499,0.6279359,122300.0,122290.0,2.4838682]
[1760006965804,0.6279359,122300.0,122290.0,3.2255082]
[1760006966499,0.6279359,122300.0,122290.0,3.23432228]
[1760006968699,0.6279359,122300.0,122290.0,3.30068861]
[1760006968905,0.6279359,122300.0,122290.0,3.30060861]
[1760006970804,0.6279359,122300.0,122290.0,2.55904861]
[1760006971108,0.6279359,122300.0,122290.0,3.30060861]
[1760006971501,0.6309359,122300.0,122290.0,0.43598041]
[1760006971707,1.18216805,122300.0,122290.0,0.07518041]
[1760006972006,0.1436082,122290.0,122280.0,2.0414]
[1760006972200,0.5244725,122290.0,122280.0,2.78296]
[1760006972400,0.0817549,122280.0,122270.0,0.44263869]
[1760006972601,0.6279492,122280.0,122270.0,2.40227739]
[1760006972802,0.6279492,122280.0,122270.0,3.2077426]
[1760006973409,0.6279492,122280.0,122270.0,3.2076765]
[1760006973905,0.6279492,122280.0,122270.0,0.5064781]
[1760006974104,0.6279492,122280.0,122270.0,3.2895181]
[1760006974500,0.6280308,122280.0,122270.0,3.2895181]
[1760006974708,0.5462759,122280.0,122270.0,3.2895181]
[1760006974906,0.6280308,122280.0,122270.0,3.2915181]
[1760006975110,0.6280308,122280.0,122270.0,2.5499181]
[1760006975409,0.6280308,122280.0,122270.0,3.2915181]
[1760006975810,0.6280308,122280.0,122270.0,3.2097565]
[1760006976211,0.6280308,122280.0,122270.0,0.4267165]
[1760006976511,0.6280308,122280.0,122270.0,3.2098365]
[1760006976711,0.6280308,122280.0,122270.0,2.4682365]
[1760006976911,0.6280308,122280.0,122270.0,3.2098765]
[1760006977312,0.6280308,122280.0,122270.0,3.21861158]
[1760006977706,0.6280308,122280.0,122270.0,3.30037318]
[1760006977906,0.6280308,122280.0,122270.0,0.51721318]
[1760006978118,0.50154909,122280.0,122270.0,3.30041318]
[1760006979309,0.50808909,122280.0,122270.0,3.30041318]
[1760006982612,0.50808909,122280.0,122270.0,3.30045318]
[1760006983712,0.50808909,122280.0,122270.0,3.56835318]
[1760006987714,0.50808909,122280.0,122270.0,0.51721318]
[1760006987914,0.50808909,122280.0,122270.0,3.30065318]
[1760006988610,0.50808909,122280.0,122270.0,2.55901318]
[1760006988816,0.50808909,122280.0,122270.0,2.93989318]
[1760006989116,0.50808909,122280.0,122270.0,3.30069318]
[1760006990618,0.50808909,122280.0,122270.0,2.93989318]
[1760006994420,0.50808909,122280.0,122270.0,0.15641318]
[1760006994615,0.50808909,122280.0,122270.0,2.93997318]
[1760006996718,0.50808909,122280.0,122270.0,0.07465158]
[1760006997015,0.50808909,122280.0,122270.0,2.93993318]
[1760006997209,0.50808909,122280.0,122270.0,2.19825318]
[1760006997410,0.50808909,122280.0,122270.0,2.93993318]
[1760006998422,0.50808909,122280.0,122270.0,3.01287915]
[1760007000019,0.2537065,122280.0,122270.0,3.01287915]
[1760007000216,0.42633419,122280.0,122270.0,2.63199915]
[1760007000522,0.50808909,122280.0,122270.0,2.55905318]
[1760007000722,0.50808909,122280.0,122270.0,3.30073318]
[1760007001615,0.50808909,122280.0,122270.0,3.40280874]
[1760007003818,0.50808909,122280.0,122270.0,2.66112874]
[1760007004024,0.50808909,122280.0,122270.0,3.40280874]
[1760007004517,0.50808909,122280.0,122270.0,3.67070874]
[1760007005422,0.50808909,122280.0,122270.0,2.92902874]
[1760007005621,0.50808909,122280.0,122270.0,3.56863318]
[1760007005823,0.50808909,122280.0,122270.0,3.64182956]
[1760007006126,0.50808909,122280.0,122270.0,3.64186956]
[1760007006322,0.76247168,122280.0,122270.0,1.59998956]
[1760007006824,0.76247168,122280.0,122270.0,0.85830956]
[1760007007124,0.76247168,122280.0,122270.0,1.59998956]
[1760007007627,0.76247168,122280.0,122270.0,0.50864796]
[1760007007922,0.76247168,122280.0,122270.0,0.97128956]
[1760007008123,0.76247168,122280.0,122270.0,0.88952796]
[1760007008623,1.53327168,122280.0,122270.0,0.07465158]
[1760007008922,1.53327168,122280.0,122270.0,0.88953308]
[1760007009123,1.53327168,122280.0,122270.0,0.139118]
[1760007009323,1.53327168,122280.0,122270.0,0.8075965]
[1760007009624,1.53327168,122280.0,122270.0,0.0659165]
[1760007010023,1.53327168,122280.0,122270.0,0.7866765]
[1760007010325,1.53427168,122280.0,122270.0,0.73160216]
[1760007010524,1.53627168,122280.0,122270.0,0.73160216]
[1760007012024,1.83627168,122280.0,122270.0,0.73160216]
[1760007012220,1.64627168,122280.0,122270.0,0.00884216]
[1760007012425,1.81627168,122280.0,122270.0,0.75048216]
[1760007013125,1.81627168,122280.0,122270.0,0.74165129]
[1760007013326,1.81627168,122280.0,122270.0,0.74169129]
[1760007013728,0.2417983,122260.0,122250.0,0.0732015]
[1760007013929,0.49618089,122260.0,122250.0,0.8148815]
[1760007014325,0.49618089,122260.0,122250.0,0.74168]
[1760007014826,0.49626892,122260.0,122250.0,0.74168]
[1760007015126,0.49626892,122260.0,122250.0,0.8975942]
[1760007015927,0.49626892,122260.0,122250.0,0.9707957]
[1760007016522,0.49626892,122260.0,122250.0,0.5899157]
[1760007016523,0.50280892,122260.0,122250.0,0.5899157]
[1760007016728,0.50380892,122260.0,122250.0,1.3315957]
[1760007018825,0.50380892,122260.0,122250.0,0.8890207]
[1760007020030,0.50380892,122260.0,122250.0,0.9707957]
[1760007020933,0.50380892,122260.0,122250.0,0.97063148]
[1760007021132,0.50380892,122260.0,122250.0,0.8975942]
[1760007021332,0.50380892,122260.0,122250.0,0.97062733]
[1760007021534,0.50380892,122260.0,122250.0,0.88885233]
[1760007024225,0.50380892,122260.0,122250.0,0.97062733]
[1760007025741,0.50380892,122260.0,122250.0,1.33142733]
[1760007026040,0.24942633,122260.0,122250.0,1.33142733]
[1760007026241,0.50380892,122260.0,122250.0,1.33142733]
[1760007027842,0.50380892,122260.0,122250.0,0.58974733]
[1760007028036,0.50380892,122260.0,122250.0,1.33142733]
[1760007028537,0.50380892,122260.0,122250.0,0.88885233]
[1760007029143,0.50380892,122260.0,122250.0,0.97062733]
[1760007029643,0.50380892,122260.0,122250.0,0.14717233]
[1760007029940,0.50380892,122260.0,122250.0,0.88885358]
[1760007030142,0.50380892,122260.0,122250.0,0.14717358]
[1760007030443,0.91380892,122260.0,122250.0,0.0741392]
[1760007030744,0.141435,122250.0,122240.0,2.40296]
[1760007030941,0.39581759,122250.0,122240.0,3.15307925]
[1760007031139,0.50128759,122250.0,122240.0,1.18395363]
[1760007031340,0.50128759,122250.0,122240.0,1.26573533]
[1760007032146,0.50128759,122250.0,122240.0,1.26569533]
[1760007033846,0.50128759,122250.0,122240.0,0.52405533]
[1760007034046,0.50128759,122250.0,122240.0,1.26569533]
[1760007034346,1.12647018,122250.0,122240.0,0.88932674]
[1760007034537,1.53301018,122250.0,122240.0,0.14768674]
[1760007034740,1.53301018,122250.0,122240.0,0.88932674]
[1760007034942,1.53301018,122250.0,122240.0,0.8162307]
[1760007035944,1.80301018,122250.0,122240.0,0.0745907]
[1760007036144,1.85862759,122250.0,122240.0,0.74164]
[1760007036447,0.2469117,122240.0,122230.0,0.08250925]